bitfinex/quotes_BTCUSD_20220226
["timestamp","ask_amount","ask_price","bid_price","bid_amount"]
[1645839875901,0.08759999,39642.0,39641.0,1.2118]
[1645839876104,0.08759999,39642.0,39641.0,0.446]
[1645839876901,0.08759999,39642.0,39641.0,1.2118]
[1645839878152,0.08759999,39642.0,39641.0,1.274858]
[1645839878452,0.08759999,39642.0,39641.0,0.451]
[1645839879055,0.08759999,39642.0,39641.0,1.2168]
[1645839879356,0.08750154,39642.0,39641.0,1.2168]
[1645839879554,0.08750154,39642.0,39641.0,0.446]
[1645839880152,0.08750154,39642.0,39641.0,1.2118]
[1645839880453,0.08750154,39642.0,39641.0,0.451]
[1645839881701,0.08750154,39642.0,39641.0,0.446]
[1645839882905,0.08750154,39642.0,39641.0,0.3997]
[1645839883304,0.08750154,39642.0,39641.0,0.446]
[1645839886353,0.08750154,39642.0,39641.0,0.45]
[1645839887657,0.08750154,39642.0,39641.0,0.446]
[1645839888358,0.08750154,39642.0,39641.0,0.513058]
[1645839889609,0.08750154,39642.0,39641.0,1.274858]
[1645839890409,0.08750154,39642.0,39641.0,1.277858]
[1645839892309,0.08750154,39642.0,39641.0,1.274858]
[1645839893956,0.08750154,39642.0,39641.0,1.2118]
[1645839896055,0.08750154,39642.0,39641.0,0.446]
[1645839897510,0.08750154,39642.0,39641.0,0.509058]
[1645839898308,0.08750154,39642.0,39641.0,0.446]
[1645839898511,0.08750154,39642.0,39641.0,0.2997]
[1645839898512,0.18250153,39642.0,39641.0,0.2997]
[1645839898709,0.18250153,39642.0,39641.0,0.0999]
[1645839901561,0.57164239,39642.0,39636.0,0.003]
[1645839901761,0.57164239,39642.0,39623.0,0.23797968]
[1645839901762,0.02512,39636.0,39623.0,0.23797968]
[1645839901960,0.02512,39636.0,39623.0,0.1998]
[1645839901961,0.09499999,39626.0,39623.0,0.1998]
[1645839902164,0.09499999,39626.0,39616.0,0.91830259]
[1645839902360,0.09499999,39626.0,39619.0,0.8121]
[1645839902559,0.49762086,39633.0,39623.0,0.003]
[1645839902760,0.09499999,39630.0,39623.0,0.003]
[1645839902959,0.1336,39633.0,39626.0,0.1998]
[1645839902960,0.09499999,39632.0,39626.0,0.1998]
[1645839903160,0.09499999,39630.0,39626.0,0.1998]
[1645839903360,0.09499999,39630.0,39626.0,0.2998]
[1645839904005,0.09499999,39631.0,39626.0,0.2998]
[1645839904209,0.09499999,39631.0,39626.0,0.1998]
[1645839905807,0.02512,39632.0,39626.0,0.1998]
[1645839906207,0.3605829,39633.0,39626.0,0.2998]
[1645839906208,0.12011999,39629.0,39626.0,0.2998]
[1645839906407,0.12011999,39629.0,39626.0,0.1]
[1645839906608,0.21136256,39627.0,39626.0,0.05]
[1645839906807,0.23648256,39627.0,39621.0,0.003]
[1645839907009,0.09499999,39629.0,39621.0,0.103]
[1645839907208,0.09499999,39629.0,39622.0,0.2499]
[1645839907413,0.09499999,39629.0,39625.0,0.1998]
[1645839907675,0.09499999,39629.0,39625.0,0.2498]
[1645839907875,0.09499999,39629.0,39625.0,0.2998]
[1645839908578,0.09499999,39631.0,39625.0,0.2998]
[1645839909378,0.09499999,39631.0,39628.0,0.11437888]
[1645839910579,0.09499999,39631.0,39628.0,0.11937888]
[1645839910978,0.09499999,39629.0,39628.0,0.11937888]
[1645839911812,0.09499999,39629.0,39628.0,0.11437888]
[1645839912514,0.09499999,39629.0,39628.0,0.11837888]
[1645839912912,0.09499999,39632.0,39628.0,0.11837888]
[1645839913814,0.09499999,39632.0,39628.0,0.11437888]
[1645839914115,0.4257,39636.0,39630.0,0.7658]
[1645839914314,0.4257,39636.0,39631.0,0.0463]
[1645839914512,0.1276,39637.0,39636.0,0.1998]
[1645839914513,0.00034051,39637.0,39636.0,0.1998]
[1645839914713,0.00034051,39637.0,39636.0,0.2961]
[1645839915158,0.00034051,39637.0,39636.0,0.2911]
[1645839915355,0.09499999,39641.0,39636.0,0.0913]
[1645839915557,0.00039564,39638.0,39636.0,0.0913]
[1645839915957,0.09539563,39638.0,39636.0,0.0913]
[1645839916656,0.09499999,39637.0,39636.0,0.0913]
[1645839916857,0.00039564,39639.0,39636.0,0.0913]
[1645839917661,0.09499999,39640.0,39636.0,0.0913]
[1645839917858,0.09499999,39640.0,39636.0,0.1413]
[1645839918060,0.00039564,39639.0,39636.0,0.1413]
[1645839918909,0.09499999,39640.0,39636.0,0.1413]
[1645839919308,0.00031564,39639.0,39636.0,0.1413]
[1645839919710,0.00031564,39639.0,39637.0,0.12612]
[1645839919908,0.00031564,39639.0,39638.0,1.06908944]
[1645839920107,0.00031564,39639.0,39638.0,1.82593944]
[1645839920312,0.00031564,39639.0,39638.0,1.87593944]
[1645839920509,0.08750154,39642.0,39638.0,1.87993944]
[1645839920709,0.08750154,39642.0,39639.0,0.8158]
[1645839920910,0.08750154,39642.0,39640.0,0.80311]
[1645839921110,0.08750154,39642.0,39640.0,0.85311]
[1645839921309,0.08750154,39642.0,39641.0,0.1998]
[1645839921511,0.08750154,39642.0,39641.0,1.00289]
[1645839921711,0.08750154,39642.0,39641.0,1.08900758]
[1645839921910,0.08750154,39642.0,39641.0,1.0796038]
[1645839922510,0.08750154,39642.0,39641.0,1.0836038]
[1645839922960,0.08750154,39642.0,39641.0,0.80709]
[1645839922961,0.18250153,39642.0,39641.0,0.80709]
[1645839923155,0.18250153,39642.0,39641.0,0.76079]
[1645839923756,0.18250153,39642.0,39641.0,0.75679]
[1645839924755,0.18250153,39642.0,39641.0,0.80309]
[1645839924954,0.18250153,39642.0,39641.0,0.86027944]
[1645839925356,0.18250153,39642.0,39641.0,0.91746888]
[1645839925957,0.17750153,39642.0,39641.0,0.87116888]
[1645839926157,0.62750153,39642.0,39641.0,0.87116888]
[1645839926413,0.62750153,39642.0,39641.0,0.87416888]
[1645839926613,0.52750153,39642.0,39641.0,0.87416888]
[1645839927615,0.17750153,39642.0,39641.0,0.87416888]
[1645839927815,0.17750153,39642.0,39641.0,0.87116888]
[1645839928220,0.17750153,39642.0,39641.0,0.91746888]
[1645839928616,0.17750153,39642.0,39641.0,0.91946888]
[1645839929917,0.17750153,39642.0,39641.0,0.91746888]
[1645839930554,0.17750153,39642.0,39641.0,0.92046888]
[1645839931560,0.08250154,39642.0,39641.0,0.92046888]
[1645839931759,0.08250154,39642.0,39641.0,0.91746888]
[1645839932360,0.08250154,39642.0,39641.0,1.32805178]
[1645839932558,0.08250154,39642.0,39641.0,1.28032888]
[1645839934609,0.08250154,39642.0,39641.0,1.64091178]
[1645839935911,0.08250154,39642.0,39641.0,2.40671178]
[1645839936108,0.08250154,39642.0,39641.0,2.04612888]
[1645839936608,0.08250154,39642.0,39641.0,2.05212888]
[1645839937012,0.08250154,39642.0,39641.0,1.12326888]
[1645839937211,0.08250154,39642.0,39641.0,0.92346888]
[1645839937660,0.08250154,39642.0,39641.0,0.91746888]
[1645839937858,0.08250154,39642.0,39641.0,1.11726888]
[1645839938259,0.08250154,39642.0,39641.0,1.93306888]
[1645839938463,0.08250154,39642.0,39641.0,1.98306888]
[1645839938860,0.08250154,39642.0,39641.0,2.04612988]
[1645839939263,0.08250154,39642.0,39641.0,1.21726888]
[1645839940661,0.08250154,39642.0,39641.0,1.22426888]
[1645839940861,0.07911936,39642.0,39641.0,1.22426888]
[1645839941707,0.07911936,39642.0,39641.0,1.21726888]
[1645839942108,0.07911936,39642.0,39641.0,1.28032788]
[1645839942508,0.07911936,39642.0,39641.0,1.28432788]
[1645839943812,0.07911936,39642.0,39641.0,1.28032788]
[1645839944008,0.07911936,39642.0,39641.0,1.64091078]
[1645839944208,0.07911936,39642.0,39641.0,7.71021078]
[1645839944408,0.07911936,39642.0,39641.0,6.94441078]
[1645839944609,0.07911936,39642.0,39641.0,6.94941078]
[1645839944810,0.07911936,39642.0,39641.0,6.58882788]
[1645839945166,0.07911936,39642.0,39641.0,7.35462788]
[1645839945768,0.07911936,39642.0,39641.0,7.34962788]
[1645839946569,0.07911936,39642.0,39641.0,6.58682788]
[1645839946768,0.09499999,39646.0,39641.0,7.35262788]
[1645839946969,0.09499999,39646.0,39642.0,0.3605829]
[1645839947169,0.09499999,39646.0,39644.0,0.05718944]
[1645839947372,0.09499999,39646.0,39645.0,0.0463]
[1645839947570,0.09499999,39646.0,39645.0,0.10348944]
[1645839947771,0.09499999,39646.0,39645.0,0.1237088]
[1645839948771,0.00039806,39647.0,39645.0,0.1237088]
[1645839949014,0.01,39649.0,39645.0,0.1237088]
[1645839949411,0.00039806,39647.0,39645.0,0.1237088]
[1645839949811,0.09539805,39647.0,39645.0,0.1237088]
[1645839950114,0.00039806,39647.0,39645.0,0.1237088]
[1645839950312,0.01,39649.0,39645.0,0.1237088]
[1645839950513,0.00039806,39648.0,39645.0,0.1237088]
[1645839950714,0.00039806,39648.0,39646.0,0.2498]
[1645839950915,0.00039806,39648.0,39646.0,0.2961]
[1645839951525,0.01,39649.0,39646.0,0.2961]
[1645839951717,0.01039712,39649.0,39646.0,0.2961]
[1645839952518,0.01039712,39649.0,39648.0,0.05718944]
[1645839952766,0.01,39649.0,39648.0,1.33556042]
[1645839952962,0.01039711,39649.0,39648.0,1.36068042]
[1645839953162,0.00158818,39656.0,39650.0,0.7658]
[1645839953361,0.25128259,39663.0,39654.0,0.7658]
[1645839953562,0.09499999,39661.0,39656.0,0.7658]
[1645839953862,0.25128259,39663.0,39659.0,0.063029]
[1645839954066,0.09499999,39664.0,39660.0,0.0463]
[1645839954260,0.09499999,39664.0,39661.0,0.7658]
[1645839954461,0.09499999,39664.0,39662.0,0.0463]
[1645839954462,0.08999999,39664.0,39662.0,0.0463]
[1645839954661,0.08999999,39664.0,39663.0,0.0463]
[1645839954861,0.7026,39669.0,39663.0,0.0463]
[1645839955062,0.7157,39674.0,39663.0,0.0463]
[1645839955063,0.08999999,39664.0,39663.0,0.0463]
[1645839956707,0.08999999,39664.0,39663.0,0.0493]
[1645839957905,0.08999999,39664.0,39663.0,0.0463]
[1645839958105,0.08999999,39664.0,39663.0,0.16067888]
[1645839958306,0.08999999,39664.0,39663.0,0.26067888]
[1645839958508,0.0003931,39665.0,39663.0,0.26467888]
[1645839958709,0.08999999,39667.0,39663.0,0.26467888]
[1645839958710,0.08999999,39667.0,39664.0,0.063023]
[1645839958907,0.08999999,39669.0,39665.0,0.0463]
[1645839959318,0.21129659,39687.0,39668.0,0.7658]
[1645839959514,0.21129659,39687.0,39666.0,1.1499]
[1645839959515,0.00595846,39688.0,39678.0,0.02512]
[1645839959710,0.00595846,39688.0,39681.0,0.79092]
[1645839959908,0.3963,39698.0,39687.0,0.7658]
[1645839960162,0.13,39702.0,39688.0,0.2461]
[1645839960163,0.08499999,39689.0,39688.0,0.2461]
[1645839961061,0.31365827,39689.0,39688.0,0.2461]
[1645839962162,0.31365827,39689.0,39688.0,0.0463]
[1645839962364,0.02512,39686.0,39679.0,0.80599]
[1645839962563,0.02512,39686.0,39683.0,0.004]
[1645839962863,0.18499999,39684.0,39683.0,0.004]
[1645839963065,0.02512,39682.0,39679.0,0.75599]
[1645839963264,0.08456999,39680.0,39679.0,1.29096068]
[1645839964111,0.08456999,39680.0,39679.0,0.75599]
[1645839964711,0.08456999,39680.0,39679.0,0.75799]
[1645839966013,0.08456999,39680.0,39679.0,0.75599]
[1645839966614,0.08456999,39680.0,39679.0,0.75799]
[1645839968267,0.08456999,39680.0,39679.0,0.81517944]
[1645839968466,0.08456999,39680.0,39679.0,0.87236888]
[1645839968667,0.08366799,39680.0,39679.0,0.87236888]
[1645839968866,0.00038156,39681.0,39679.0,0.87236888]
[1645839969066,0.08366799,39680.0,39679.0,0.97236888]
[1645839969267,0.00038156,39681.0,39679.0,0.97236888]
[1645839969467,0.08366799,39680.0,39679.0,0.97236888]
[1645839970066,0.08366799,39680.0,39679.0,0.97036888]
[1645839970666,0.08366799,39680.0,39679.0,0.97436888]
[1645839972114,0.08366799,39680.0,39679.0,0.97036888]
[1645839972712,0.08366799,39680.0,39679.0,0.97436888]
[1645839973112,0.08366799,39680.0,39679.0,0.87436888]
[1645839973914,0.08366799,39680.0,39679.0,0.87036888]
[1645839975359,0.00032399,39681.0,39679.0,0.87036888]
[1645839975559,0.00032399,39681.0,39679.0,0.81317944]
[1645839975759,0.00032399,39681.0,39679.0,0.75599]
[1645839975960,0.00032399,39681.0,39680.0,0.11437888]
[1645839976159,0.08386322,39681.0,39680.0,0.11437888]
[1645839976360,0.08386322,39681.0,39680.0,0.10235357]
[1645839976762,0.08353923,39681.0,39680.0,0.10235357]
[1645839977263,0.40068076,39681.0,39680.0,0.10235357]
[1645839977962,0.30068076,39681.0,39680.0,0.10235357]
[1645839978763,0.30068076,39681.0,39680.0,0.10435357]
[1645839979817,0.30068076,39681.0,39680.0,0.10235357]
[1645839980619,0.30068076,39681.0,39680.0,0.10435357]
[1645839980819,0.30068076,39681.0,39680.0,0.05918944]
[1645839981218,0.30068076,39681.0,39680.0,0.10435357]
[1645839981620,0.08353923,39681.0,39680.0,0.10435357]
[1645839981820,0.08353923,39681.0,39680.0,0.10235357]
[1645839982760,0.08353923,39681.0,39680.0,0.10535357]
[1645839983861,0.08353923,39681.0,39680.0,0.10235357]
[1645839984660,0.08353923,39681.0,39680.0,0.10735357]
[1645839985862,0.08353923,39681.0,39680.0,0.10235357]
[1645839986633,0.08353923,39681.0,39680.0,0.10635357]
[1645839988032,0.08353923,39681.0,39680.0,0.10235357]
[1645839988635,0.00038961,39682.0,39680.0,0.10635357]
[1645839988939,0.52192422,39687.0,39681.0,0.37573781]
[1645839989134,0.52192422,39687.0,39681.0,0.62070194]
[1645839989334,0.00038961,39682.0,39681.0,0.29126413]
[1645839990168,0.60546345,39687.0,39681.0,0.09146413]
[1645839990364,0.00038961,39683.0,39681.0,0.09146413]
[1645839991365,0.52192422,39687.0,39681.0,0.09146413]
[1645839991562,0.00038961,39684.0,39682.0,0.1998]
[1645839991762,0.00038961,39684.0,39683.0,0.0963]
[1645839992563,0.52192422,39687.0,39683.0,0.2961]
[1645839992767,0.00038961,39685.0,39683.0,0.3011]
[1645839993767,0.52192422,39687.0,39683.0,0.1013]
[1645839994041,0.52192422,39687.0,39683.0,0.0963]
[1645839994042,0.00038961,39686.0,39683.0,0.0963]
[1645839994243,0.00038961,39686.0,39685.0,0.05718944]
[1645839994440,0.00038961,39686.0,39685.0,0.14865357]
[1645839994841,0.52192422,39687.0,39685.0,0.24865357]
[1645839995040,0.52192422,39687.0,39685.0,0.44845357]
[1645839995240,0.5220411,39687.0,39685.0,0.44845357]
[1645839996042,0.52192422,39687.0,39685.0,0.44845357]
[1645839998172,0.52192422,39687.0,39685.0,0.34845357]
[1645839998771,0.52192422,39687.0,39685.0,0.35145357]
[1645839999375,0.52192422,39687.0,39685.0,0.39426413]
[1645839999673,0.52192422,39687.0,39686.0,0.10235357]
[1645840000579,0.52184454,39687.0,39686.0,0.10235357]
[1645840000772,0.52184454,39687.0,39686.0,0.10635357]
[1645840001617,0.52184454,39687.0,39686.0,0.09880453]
[1645840002619,0.52184454,39687.0,39686.0,0.09480453]
[1645840004826,0.52184454,39687.0,39686.0,0.04516413]
[1645840005026,0.52184454,39687.0,39686.0,0.09480453]
[1645840006867,0.52184454,39687.0,39686.0,0.09780453]
[1645840007465,0.52184454,39687.0,39686.0,0.14780453]
[1645840007664,0.52184454,39687.0,39686.0,0.19780453]
[1645840007864,0.52184454,39687.0,39686.0,0.26079553]
[1645840008064,0.52184454,39687.0,39686.0,0.25779553]
[1645840008925,0.52184454,39687.0,39686.0,1.11407521]
[1645840009119,0.52184454,39687.0,39686.0,0.86417521]
[1645840009320,0.52184454,39687.0,39686.0,1.02251464]
[1645840009519,0.52184454,39687.0,39686.0,0.86417521]
[1645840009719,0.52184454,39687.0,39686.0,1.02251464]
[1645840010019,0.52184454,39687.0,39686.0,0.86417521]
[1645840010220,0.52184454,39687.0,39686.0,1.52251464]
[1645840010721,0.52184454,39687.0,39686.0,1.52551464]
[1645840010922,0.51684454,39687.0,39686.0,1.52551464]
[1645840012020,0.51684454,39687.0,39686.0,1.52251464]
[1645840012668,0.51684454,39687.0,39686.0,2.02251464]
[1645840013069,0.51684454,39687.0,39686.0,1.66223496]
[1645840013469,0.51684454,39687.0,39686.0,1.59924396]
[1645840013868,0.51684454,39687.0,39686.0,1.44090453]
[1645840014069,0.51684454,39687.0,39686.0,0.44090453]
[1645840014769,0.51684454,39687.0,39686.0,0.44490453]
[1645840015669,0.51684454,39687.0,39686.0,0.39860453]
[1645840016068,0.51684454,39687.0,39686.0,0.39460453]
[1645840016515,0.51684454,39687.0,39686.0,0.45759253]
[1645840016715,0.51684454,39687.0,39686.0,0.46059253]
[1645840018116,0.51684454,39687.0,39686.0,0.45759253]
[1645840018715,0.51684454,39687.0,39686.0,0.46059253]
[1645840020018,0.51684454,39687.0,39686.0,0.45759253]
[1645840020766,0.51684454,39687.0,39686.0,0.46059253]
[1645840022064,0.51684454,39687.0,39686.0,0.45759253]
[1645840022864,0.51684454,39687.0,39686.0,0.46059253]
[1645840024115,0.51684454,39687.0,39686.0,0.45759253]
[1645840024512,0.51684454,39687.0,39686.0,1.45759253]
[1645840024713,0.51684454,39687.0,39686.0,1.46159253]
[1645840024914,0.51684454,39687.0,39686.0,1.61963783]
[1645840025517,0.51684454,39687.0,39686.0,1.55664983]
[1645840026015,0.51684454,39687.0,39686.0,1.55264983]
[1645840027318,0.51684454,39687.0,39686.0,1.59894983]
[1645840027766,0.51684454,39687.0,39686.0,2.35486983]
[1645840028567,0.51684454,39687.0,39686.0,3.12066983]
[1645840028967,0.51684454,39687.0,39686.0,3.30688971]
[1645840029569,0.51684454,39687.0,39686.0,2.54108971]
[1645840029970,0.00034321,39688.0,39687.0,0.5]
[1645840030172,0.00034321,39688.0,39687.0,1.5175928]
[1645840030372,0.00034321,39688.0,39687.0,1.6480928]
[1645840030673,0.00034321,39688.0,39687.0,2.49881733]
[1645840030873,0.23359777,39701.0,39687.0,2.49881733]
[1645840031072,0.23359777,39701.0,39687.0,2.52381733]
[1645840031274,0.00034321,39689.0,39687.0,2.02381733]
[1645840031514,0.00034321,39689.0,39688.0,0.37334648]
[1645840031717,0.00034321,39689.0,39688.0,0.96964648]
[1645840031913,0.00034321,39689.0,39688.0,1.46964648]
[1645840032113,0.02512,39704.0,39688.0,0.51964648]
[1645840032514,0.00034963,39690.0,39688.0,0.51964648]
[1645840032714,0.00034963,39690.0,39688.0,0.2463]
[1645840032916,0.00034963,39690.0,39689.0,0.37334648]
[1645840033113,0.00034963,39690.0,39689.0,0.41964648]
[1645840033314,0.17768863,39699.0,39689.0,0.41964648]
[1645840033715,0.00034963,39691.0,39689.0,0.41964648]
[1645840033915,0.00034963,39691.0,39690.0,0.2998]
[1645840034116,0.00034963,39691.0,39690.0,0.57314648]
[1645840034319,0.00034963,39691.0,39690.0,0.67314648]
[1645840034617,0.02512,39705.0,39690.0,0.77314648]
[1645840034816,0.00034963,39692.0,39690.0,0.57734648]
[1645840035177,0.00034963,39692.0,39691.0,0.1998]
[1645840035478,0.20371441,39700.0,39691.0,0.1998]
[1645840035979,0.02512,39700.0,39694.0,0.09480453]
[1645840036179,0.00046869,39699.0,39694.0,0.09480453]
[1645840036779,0.00046869,39699.0,39694.0,0.09580453]
[1645840036984,0.02512,39702.0,39694.0,0.09580453]
[1645840037980,0.02512,39702.0,39694.0,0.09480453]
[1645840038281,0.02512,39702.0,39696.0,0.00031137]
[1645840038481,0.02512,39705.0,39696.0,0.00031137]
[1645840038914,0.02512,39705.0,39696.0,0.00231137]
[1645840039314,0.02512,39705.0,39696.0,0.002]
[1645840039518,0.02512,39705.0,39696.0,0.00242727]
[1645840039715,0.00038627,39702.0,39696.0,0.00242727]
[1645840040215,0.00038627,39702.0,39696.0,0.00042727]
[1645840040715,0.02512,39705.0,39696.0,0.00042727]
[1645840040916,0.02050627,39705.0,39696.0,0.00042727]
[1645840041116,0.1231,39706.0,39700.0,0.04516413]
[1645840041317,0.24030233,39707.0,39700.0,0.09480453]
[1645840043173,0.02512,39709.0,39700.0,0.09480453]
[1645840043572,0.02012,39709.0,39700.0,0.09480453]
[1645840044172,0.02012,39711.0,39700.0,0.09480453]
[1645840044372,0.0003853,39706.0,39700.0,0.09480453]
[1645840045274,0.02012,39711.0,39700.0,0.09480453]
[1645840045673,0.0003853,39705.0,39700.0,0.09480453]
[1645840046422,0.0003853,39705.0,39702.0,0.04516413]
[1645840046623,0.0003853,39705.0,39702.0,0.09480453]
[1645840047023,0.0003853,39704.0,39702.0,0.09480453]
[1645840047823,0.02012,39711.0,39702.0,0.09480453]
[1645840048023,0.0003853,39705.0,39702.0,0.09480453]
[1645840048823,0.02012,39711.0,39702.0,0.09480453]
[1645840048824,0.0199953,39711.0,39702.0,0.09680453]
[1645840049224,0.00036572,39705.0,39702.0,0.09680453]
[1645840049624,0.00036572,39705.0,39702.0,0.09704299]
[1645840050027,0.00036572,39705.0,39702.0,0.09504299]
[1645840050276,0.0199953,39711.0,39702.0,0.09459419]
[1645840050874,0.0199953,39711.0,39702.0,0.09559419]
[1645840051478,0.0199953,39711.0,39702.0,0.0506404]
[1645840051676,0.0199953,39711.0,39702.0,0.001]
[1645840051876,0.1252,39712.0,39706.0,0.09459419]
[1645840052075,0.02512,39715.0,39706.0,0.09459419]
[1645840052680,0.02512,39717.0,39707.0,0.37334648]
[1645840052876,0.02512,39717.0,39706.0,0.09459419]
[1645840052877,0.00038434,39712.0,39706.0,0.09559419]
[1645840053775,0.02512,39717.0,39706.0,0.09559419]
[1645840054020,0.1265,39719.0,39706.0,0.09559419]
[1645840054021,0.00038434,39711.0,39706.0,0.09559419]
[1645840054216,0.00038434,39711.0,39706.0,0.09459419]
[1645840055014,0.02512,39718.0,39706.0,0.09459419]
[1645840055218,0.00038434,39710.0,39706.0,0.09459419]
[1645840056116,0.02512,39714.0,39706.0,0.09459419]
[1645840056316,0.21795318,39715.0,39707.0,0.01007]
[1645840056518,0.00038434,39710.0,39707.0,0.01007]
[1645840056918,0.00038434,39710.0,39707.0,0.01107]
[1645840057118,0.00038434,39710.0,39708.0,0.09459419]
[1645840057320,0.21795318,39715.0,39708.0,0.09459419]
[1645840057321,0.19283318,39715.0,39708.0,0.09459419]
[1645840057519,0.02512,39718.0,39708.0,0.09459419]
[1645840057775,0.00037211,39710.0,39708.0,0.09459419]
[1645840058871,0.00037211,39711.0,39708.0,0.09459419]
[1645840059773,0.02512,39718.0,39708.0,0.09459419]
[1645840060072,0.00037211,39711.0,39708.0,0.09459419]
[1645840060872,0.00037211,39711.0,39708.0,0.09559419]
[1645840061072,0.21535013,39718.0,39708.0,0.09559419]
[1645840061273,0.00038434,39711.0,39708.0,0.09559419]
[1645840062222,0.02512,39718.0,39710.0,0.1998]
[1645840062521,0.00038434,39711.0,39710.0,0.29439419]
[1645840062921,0.00038434,39711.0,39710.0,0.29539419]
[1645840063523,0.1265,39719.0,39710.0,0.29539419]
[1645840063722,0.00038434,39712.0,39711.0,0.37334648]
[1645840063922,0.00038434,39712.0,39710.0,0.29539419]
[1645840064122,0.00038434,39712.0,39710.0,0.09459419]
[1645840064623,0.1265,39719.0,39710.0,0.09459419]
[1645840064823,0.00038434,39713.0,39710.0,0.46894067]
[1645840065023,0.00038434,39713.0,39710.0,0.09559419]
[1645840065868,0.15162,39719.0,39710.0,0.09559419]
[1645840066067,0.00038434,39713.0,39710.0,0.09559419]
[1645840066968,0.12803712,39719.0,39710.0,0.09559419]
[1645840066969,0.1265,39719.0,39712.0,0.1]
[1645840067167,0.1265,39719.0,39711.0,0.41964648]
[1645840067168,0.1265,39719.0,39715.0,0.1]
[1645840067368,0.00153712,39719.0,39716.0,0.0463]
[1645840067870,0.00153712,39719.0,39718.0,0.09459419]
[1645840068068,0.00153712,39719.0,39718.0,0.14089419]
[1645840068270,0.14308788,39727.0,39718.0,0.14089419]
[1645840068467,0.0003627,39719.0,39718.0,0.14089419]
[1645840069431,0.27101429,39729.0,39718.0,0.14089419]
[1645840069832,0.00010957,39720.0,39718.0,0.14089419]
[1645840070834,0.23070913,39723.0,39718.0,0.14089419]
[1645840071032,0.00010957,39721.0,39718.0,0.14089419]
[1645840071334,0.00010957,39721.0,39704.0,0.80775484]
[1645840071335,0.35320837,39717.0,39704.0,0.80775484]
[1645840072333,0.21869771,39710.0,39704.0,0.80775484]
[1645840072532,0.21869771,39710.0,39704.0,0.80721284]
[1645840073168,0.21869771,39710.0,39704.0,0.78221284]
[1645840073569,0.0003602,39709.0,39704.0,0.78221284]
[1645840074069,0.0003602,39709.0,39704.0,0.78521284]
[1645840074370,0.21869771,39710.0,39704.0,0.78521284]
[1645840074568,0.0003602,39708.0,39704.0,0.78521284]
[1645840075168,0.0003602,39708.0,39704.0,0.78221284]
[1645840075569,0.21869771,39710.0,39704.0,0.78221284]
[1645840075770,0.00032455,39708.0,39704.0,0.78221284]
[1645840076617,0.21869771,39710.0,39704.0,0.78221284]
[1645840077017,0.00032455,39708.0,39704.0,0.78221284]
[1645840077816,0.21869771,39710.0,39704.0,0.78221284]
[1645840078218,0.00032455,39708.0,39704.0,0.78221284]
[1645840079017,0.21869771,39710.0,39704.0,0.78221284]
[1645840079417,0.00010959,39708.0,39704.0,0.78221284]
[1645840080268,0.21869771,39710.0,39704.0,0.78221284]
[1645840080469,0.00010959,39708.0,39704.0,0.78221284]
[1645840081467,0.21869771,39710.0,39704.0,0.78221284]
[1645840081668,0.0003653,39708.0,39704.0,0.78221284]
[1645840082067,0.0003653,39708.0,39704.0,0.78521284]
[1645840082669,0.13686091,39716.0,39704.0,0.78521284]
[1645840082868,0.13686091,39716.0,39705.0,0.37057296]
[1645840083068,0.00038434,39708.0,39705.0,0.37057296]
[1645840083369,0.00038434,39708.0,39704.0,1.1557858]
[1645840084025,0.23486308,39714.0,39705.0,0.15612341]
[1645840084222,0.00038434,39708.0,39706.0,0.37057296]
[1645840084424,0.00038434,39708.0,39705.0,0.15612341]
[1645840084824,0.00038434,39708.0,39704.0,0.93833625]
[1645840085023,0.23486308,39714.0,39704.0,0.78221284]
[1645840085524,0.23486308,39714.0,39704.0,0.79228284]
[1645840085525,0.00038434,39708.0,39704.0,0.79228284]
[1645840086024,0.00038434,39708.0,39704.0,0.79628284]
[1645840086225,0.23486308,39714.0,39704.0,1.1668558]
[1645840086628,0.00038434,39708.0,39705.0,0.15613233]
[1645840087426,0.23486308,39714.0,39705.0,0.15613233]
[1645840087872,0.00038434,39708.0,39705.0,0.15613233]
[1645840088466,0.00038434,39708.0,39704.0,0.78621284]
[1645840088667,0.23486308,39714.0,39704.0,1.1567858]
[1645840088866,0.22986308,39714.0,39704.0,1.1567858]
[1645840089067,0.00038434,39708.0,39705.0,0.15613233]
[1645840089271,0.00038434,39708.0,39704.0,0.78221284]
[1645840089668,0.00038434,39708.0,39704.0,0.88221284]
[1645840089866,0.22986308,39714.0,39704.0,0.88221284]
[1645840090068,0.22986308,39714.0,39705.0,0.37057296]
[1645840090266,0.00038434,39708.0,39705.0,0.37057296]
[1645840090466,0.00038434,39708.0,39705.0,0.15611331]
[1645840091067,0.22986308,39714.0,39706.0,0.01007]
[1645840091522,0.00038434,39708.0,39706.0,0.01007]
[1645840091925,0.00038434,39708.0,39705.0,0.01007]
[1645840092323,0.22986308,39714.0,39705.0,0.01007]
[1645840092522,0.00038434,39709.0,39705.0,0.01007]
[1645840092922,0.00038434,39709.0,39705.0,0.21618331]
[1645840093122,0.00038434,39709.0,39705.0,0.06007]
[1645840093322,0.00038434,39709.0,39705.0,0.21618331]
[1645840093522,0.22986308,39714.0,39705.0,0.06007]
[1645840093723,0.00037198,39709.0,39705.0,0.06007]
[1645840093924,0.00037198,39709.0,39705.0,0.05]
[1645840094125,0.00037198,39709.0,39705.0,0.052]
[1645840094527,0.00037198,39709.0,39705.0,0.002]
[1645840094724,0.22986308,39714.0,39705.0,0.002]
[1645840094924,0.00037198,39709.0,39705.0,0.002]
[1645840095367,0.00037198,39709.0,39703.0,0.01007]
[1645840095970,0.22986308,39714.0,39703.0,0.01007]
[1645840096169,0.00037198,39708.0,39703.0,0.01307]
[1645840097075,0.22986308,39714.0,39703.0,0.01307]
[1645840097373,0.00037226,39707.0,39703.0,0.01307]
[1645840097871,0.00037226,39707.0,39703.0,0.003]
[1645840098073,0.00037226,39707.0,39701.0,0.16618331]
[1645840098274,0.23798354,39708.0,39700.0,0.01007]
[1645840098574,0.23798354,39708.0,39699.0,0.01007]
[1645840098775,0.23798354,39708.0,39699.0,0.00028675]
[1645840099518,0.23798354,39708.0,39697.0,0.29021331]
[1645840099719,0.23798354,39708.0,39697.0,0.39021331]
[1645840100118,0.23798354,39708.0,39698.0,0.37057296]
[1645840100920,0.37068821,39707.0,39697.0,0.15611331]
[1645840101129,0.70673195,39706.0,39692.0,0.78721284]
[1645840101325,0.02512,39701.0,39687.0,0.75592]
[1645840101524,0.02512,39701.0,39680.0,1.122]
[1645840101525,1.09643095,39697.0,39680.0,0.689]
[1645840101724,0.55702725,39700.0,39677.0,0.1998]
[1645840101725,0.79092,39695.0,39677.0,0.1998]
[1645840101920,0.79092,39691.0,39674.0,0.001]
[1645840102120,0.79092,39691.0,39675.0,0.002]
[1645840102121,0.79092,39689.0,39675.0,0.002]
[1645840102324,0.7,39686.0,39671.0,0.4054]